bitfinex/quotes_ETHUSD_20220103
["timestamp","ask_amount","ask_price","bid_price","bid_amount"]
[1641248388691,0.00454739,3741.2,3741.1,19.7519776]
[1641248388892,0.00454739,3741.2,3741.1,2.9719776]
[1641248389092,0.00454739,3741.2,3741.1,2.63282705]
[1641248389291,0.00454739,3741.2,3741.1,1.29670705]
[1641248392227,0.00454739,3741.2,3740.9,0.66806]
[1641248392438,0.00454739,3741.2,3740.9,1.26806]
[1641248392640,0.00397896,3741.1,3740.9,0.6]
[1641248392839,0.00397896,3741.1,3740.9,0.3]
[1641248393034,3.0096949,3742.1,3740.9,0.3]
[1641248393035,0.00341054,3741.0,3740.9,0.3]
[1641248393435,0.00341054,3741.0,3740.9,1.71969093]
[1641248394434,0.00341054,3741.0,3740.9,2.01969093]
[1641248394634,0.00472878,3741.0,3740.9,2.01969093]
[1641248395097,0.00472878,3741.0,3740.9,6.03524433]
[1641248395280,0.00472878,3741.0,3740.9,19.46782093]
[1641248395487,3.0096949,3742.1,3740.9,19.46782093]
[1641248395684,3.0096949,3742.1,3741.5,0.66805]
[1641248395884,3.0096949,3742.1,3740.9,1.71969093]
[1641248395885,0.00568423,3742.0,3740.9,1.71969093]
[1641248396286,0.00511581,3741.9,3741.0,2.00437]
[1641248396486,0.00511581,3741.9,3741.0,0.66818]
[1641248396686,0.00511581,3741.9,3740.9,2.38789093]
[1641248396687,0.00454739,3741.8,3740.9,0.3]
[1641248396887,5.31166569,3742.1,3740.7,1.6363425]
[1641248397086,2.96424229,3742.1,3741.0,0.00454739]
[1641248397288,0.00113684,3742.0,3740.8,0.00568424]
[1641248397492,0.00113684,3742.0,3740.9,0.9682]
[1641248397688,0.00113684,3742.0,3741.6,1.75903143]
[1641248398286,0.00113684,3742.0,3741.4,1.75903143]
[1641248398691,0.00113684,3742.0,3741.5,0.00170527]
[1641248400223,0.00113684,3742.0,3741.5,1.7607367]
[1641248400626,0.00113684,3742.0,3741.6,0.00113685]
[1641248401424,0.00113684,3742.0,3741.6,1.76016828]
[1641248402228,0.00113684,3742.0,3741.6,0.00113685]
[1641248403389,0.00113684,3742.0,3741.7,0.6680618]
[1641248403786,0.00113684,3742.0,3741.7,1.3361218]
[1641248403988,0.00113684,3742.0,3741.7,0.6680618]
[1641248404288,2.81537913,3742.1,3741.5,0.00170527]
[1641248404488,2.81537913,3742.1,3741.8,0.00113684]
[1641248404688,2.81537913,3742.1,3741.4,4.608269]
[1641248404689,2.81537913,3742.1,3741.5,0.00284211]
[1641248405288,2.81537913,3742.1,3741.5,0.67095211]
[1641248405691,2.81537913,3742.1,3741.6,0.00227369]
[1641248406761,2.81537913,3742.1,3741.6,0.67037289]
[1641248407164,2.81537913,3742.1,3741.7,0.00170527]
[1641248408167,2.81537913,3742.1,3741.8,0.6680674]
[1641248409268,2.81537913,3742.1,3741.8,1.3361274]
[1641248411379,2.81537913,3742.1,3741.8,2.52284851]
[1641248413182,2.81537913,3742.1,3741.9,1.75453624]
[1641248413381,2.81537913,3742.1,3741.9,2.42254624]
[1641248414030,2.81537913,3742.1,3741.9,0.66801]
[1641248414430,2.81537913,3742.1,3741.9,2.42254624]
[1641248416031,2.26537913,3742.1,3741.9,2.42254624]
[1641248416334,2.26537913,3742.1,3741.9,2.52790524]
[1641248417133,2.26537913,3742.1,3742.0,1.75453624]
[1641248418590,2.26537913,3742.1,3741.9,0.773369]
[1641248418791,2.26537913,3742.1,3741.9,1.073369]
[1641248420792,2.26537913,3742.1,3742.0,0.668]
[1641248421435,2.26666396,3742.1,3741.9,1.4413647]
[1641248421935,2.25998173,3742.1,3741.9,1.4413647]
[1641248422135,2.25998173,3742.1,3742.0,1.75337312]
[1641248422536,2.25998173,3742.1,3742.0,2.05337312]
[1641248424040,2.25998173,3742.1,3742.0,0.3]
[1641248424640,2.25998173,3742.1,3741.9,3.86277782]
[1641248424840,2.25998173,3742.1,3742.0,0.3]
[1641248426684,2.25998173,3742.1,3742.0,0.30361031]
[1641248428829,2.25998173,3742.1,3742.0,0.60361031]
[1641248432792,2.25998173,3742.1,3742.0,0.00361031]
[1641248436446,1.1529,3744.7,3742.0,19.83246765]
[1641248436640,1.1529,3744.7,3743.1,0.66778]
[1641248436641,0.01333083,3743.6,3743.1,0.66778]
[1641248436842,0.01333083,3743.6,3743.5,0.7141995]
[1641248437242,0.00909478,3743.6,3743.5,1.28023866]
[1641248437439,0.00909478,3743.6,3743.5,2.64072685]
[1641248437646,0.00909478,3743.6,3743.5,3.64072685]
[1641248437945,4.02532714,3744.7,3743.7,0.66759]
[1641248438145,4.02532714,3744.7,3743.7,0.96759]
[1641248438346,0.00170527,3743.9,3743.7,1.26759]
[1641248438744,0.06332714,3744.7,3743.8,2.21207112]
[1641248438948,0.06332714,3744.7,3743.9,2.00269]
[1641248439147,0.06332714,3744.7,3744.3,0.66756]
[1641248439346,0.02,3745.0,3744.4,2.21658182]
[1641248439548,0.02,3745.0,3744.4,3.5064501]
[1641248439750,5.70423201,3746.2,3744.4,3.5064501]
[1641248439751,5.67862151,3746.2,3744.4,3.5064501]
[1641248439947,4.01905151,3746.2,3745.4,1.3350174]
[1641248440200,0.00682108,3746.1,3744.5,2.27819819]
[1641248440399,0.00682108,3746.1,3744.5,0.00227369]
[1641248440601,0.00625266,3746.0,3744.6,0.00170527]
[1641248440798,0.00625266,3746.0,3744.2,2.25159856]
[1641248441099,0.02054393,3746.3,3745.1,1.3351009]
[1641248441100,0.00568424,3745.9,3745.1,1.3351009]
[1641248441299,0.00568424,3745.9,3745.3,0.66751]
[1641248441496,0.00511581,3745.8,3745.6,1.00278383]
[1641248441699,6.12,3746.7,3745.6,1.00278383]
[1641248441897,6.12,3746.7,3745.7,0.3]
[1641248442098,0.00341055,3746.4,3746.1,0.6673036]
[1641248442305,0.00341055,3746.4,3746.3,0.01224124]
[1641248442499,6.03964268,3747.7,3746.4,1.25153592]
[1641248442702,6.03964268,3747.7,3746.4,1.55153592]
[1641248442703,0.00150842,3746.7,3746.4,1.55153592]
[1641248442903,0.00150842,3746.7,3746.4,1.85153592]
[1641248443304,0.00150842,3746.7,3746.6,1.3341801]
[1641248443504,0.00625266,3746.9,3746.6,1.3341801]
[1641248443505,0.00625266,3746.9,3746.6,17.7141801]
[1641248443706,0.00511582,3746.7,3746.6,17.7141801]
[1641248443943,6.5,3748.3,3746.6,17.7141801]
[1641248443944,6.5,3748.3,3746.6,29.25012433]
[1641248444142,6.5,3748.3,3746.6,30.25126118]
[1641248444342,6.5,3748.3,3747.3,1.33404]
[1641248444343,0.06331981,3747.8,3747.3,1.33404]
[1641248444544,0.06331981,3747.8,3747.3,1.63404]
[1641248444745,0.00511581,3747.7,3747.4,1.22045045]
[1641248444949,6.5,3748.3,3747.9,0.6669852]
[1641248445346,0.00284212,3748.2,3747.9,0.6669852]
[1641248445746,0.00227369,3748.1,3748.0,2.2611554]
[1641248445947,0.00227369,3748.1,3747.9,0.6669852]
[1641248446145,0.00227369,3748.1,3748.0,0.66694]
[1641248446346,6.5,3748.3,3748.0,0.66694]
[1641248446746,0.00284212,3748.2,3748.0,0.66694]
[1641248447147,0.00227369,3748.1,3747.8,1.33385]
[1641248447588,0.00170527,3748.0,3747.8,1.33385]
[1641248448090,0.00113685,3747.9,3747.5,0.00113685]
[1641248448691,0.00113685,3747.9,3747.4,1.3341064]
[1641248448890,0.00113685,3747.9,3747.5,0.03458909]
[1641248449090,0.00113685,3747.9,3747.5,1.36964594]
[1641248449691,0.00113685,3747.9,3747.6,0.66702]
[1641248449891,0.00113685,3747.9,3747.7,0.666956]
[1641248450094,0.00113685,3747.9,3747.7,0.70406551]
[1641248450290,0.00113685,3747.9,3747.7,0.70183314]
[1641248450491,0.00113685,3747.9,3747.7,1.00601546]
[1641248450790,0.00113685,3747.9,3747.8,0.03386554]
[1641248450991,0.00113685,3747.9,3747.8,19.3997917]
[1641248451191,0.00113685,3747.9,3747.8,17.39939708]
[1641248451434,0.00113685,3747.9,3747.8,1.61939708]
[1641248451633,0.00113685,3747.9,3747.8,17.39939708]
[1641248451833,6.5,3748.3,3747.8,17.39939708]
[1641248451834,6.5,3748.3,3748.0,0.66678]
[1641248452034,6.5,3748.3,3748.2,15.78]
[1641248452232,0.0171,3749.9,3748.2,16.79237447]
[1641248452432,0.0171,3749.9,3748.4,15.78]
[1641248452646,0.00852635,3749.4,3749.3,1.28085598]
[1641248453237,0.00852635,3749.4,3748.7,0.03635094]
[1641248453438,0.00852635,3749.4,3749.2,0.105359]
[1641248453638,0.00795793,3749.3,3749.2,0.105359]
[1641248454438,0.00795793,3749.3,3747.5,0.66813165]
[1641248454640,0.00795793,3749.3,3747.5,0.69856679]
[1641248454839,0.0073895,3749.2,3747.6,18.10692428]
[1641248455292,0.00682108,3749.1,3747.6,15.81271087]
[1641248455490,0.00682108,3749.1,3748.0,1.37519132]
[1641248455799,0.00625266,3749.0,3748.0,1.37519132]
[1641248456299,0.00568423,3748.9,3748.0,2.37519132]
[1641248456495,0.00568423,3748.9,3748.0,1.97519132]
[1641248456694,0.00511581,3748.8,3748.0,2.97519132]
[1641248457098,0.00454738,3748.7,3748.0,2.97519132]
[1641248457295,0.00454738,3748.7,3748.0,3.08055032]
[1641248457494,0.00397896,3748.6,3748.0,1.48055032]
[1641248457900,0.00341054,3748.5,3748.0,1.48055032]
[1641248458295,0.00284211,3748.4,3748.0,1.48055032]
[1641248458842,0.00227369,3748.3,3748.0,2.14743032]
[1641248459043,0.00227369,3748.3,3748.1,0.3]
[1641248459243,0.00154717,3749.4,3748.1,0.3]
[1641248459244,0.00170527,3748.2,3748.1,0.3]
[1641248459445,0.00170527,3748.2,3748.1,1.3]
[1641248459651,0.00170527,3748.2,3748.0,2.48055032]
[1641248459652,0.00795793,3748.2,3748.0,2.48055032]
[1641248459849,0.00487639,3748.2,3748.0,0.105359]
[1641248460047,0.00113684,3748.1,3748.0,0.105359]
[1641248460451,0.00487639,3749.3,3748.0,0.105359]
[1641248460847,0.00430796,3749.2,3748.1,0.0019447]
[1641248461259,0.00373954,3749.1,3748.1,0.0019447]
[1641248461755,0.00317112,3749.0,3748.1,0.0019447]
[1641248462056,0.00154717,3749.4,3748.1,0.0019447]
[1641248462057,0.00260269,3748.9,3748.1,0.0019447]
[1641248462455,0.00203427,3748.8,3748.1,0.01408767]
[1641248462894,0.00154717,3749.4,3748.2,0.00137627]
[1641248462895,0.00146584,3748.7,3748.2,0.00137627]
[1641248463291,0.00089742,3748.6,3748.2,0.66822627]
[1641248463494,0.00089742,3748.6,3748.2,0.96822627]
[1641248463694,0.00487639,3749.3,3748.3,0.00080785]
[1641248463893,0.00487639,3749.3,3748.7,1.27975532]
[1641248464093,0.26906924,3749.6,3748.7,1.27975532]
[1641248464094,0.00430796,3749.2,3748.7,1.27975532]
[1641248464595,0.00373954,3749.1,3748.7,1.27975532]
[1641248464794,0.00373954,3749.1,3748.3,0.00080785]
[1641248464994,0.00317112,3749.0,3748.3,0.00080785]
[1641248465193,0.00317112,3749.0,3748.2,0.64705263]
[1641248465393,0.26906924,3749.6,3748.3,0.64648421]
[1641248465394,0.00260269,3748.9,3748.3,0.64648421]
[1641248465794,0.00203427,3748.8,3748.3,0.64648421]
[1641248466195,0.00146584,3748.7,3748.3,0.64648421]
[1641248466642,0.00089742,3748.6,3748.3,0.64648421]
[1641248467041,0.26906924,3749.6,3748.3,0.64648421]
[1641248467042,0.00601323,3749.5,3748.3,0.64648421]
[1641248467444,0.00544481,3749.4,3748.3,0.64648421]
[1641248467847,0.26906924,3749.6,3748.3,0.64648421]
[1641248467848,0.00487639,3749.3,3748.3,0.64648421]
[1641248468048,0.00487639,3749.3,3748.7,0.64567636]
[1641248468258,3.8468,3750.6,3748.7,0.64567636]
[1641248468259,0.00430796,3749.2,3748.9,0.64567636]
[1641248468649,0.2198,3750.0,3748.9,0.68197863]
[1641248468650,0.00373954,3749.1,3748.9,0.68197863]
[1641248468852,0.00373954,3749.1,3749.0,0.64567636]
[1641248469052,0.2198,3750.0,3749.0,0.64567636]
[1641248469250,0.2198,3750.0,3749.7,0.64567636]
[1641248469449,0.00828693,3749.9,3749.7,0.64567636]
[1641248469851,0.0077185,3749.8,3749.7,0.64567636]
[1641248471202,0.0077185,3749.8,3749.7,1.81802293]
[1641248471805,0.0077185,3749.8,3749.7,0.64567636]
[1641248473204,0.0077185,3749.8,3749.7,2.04528307]
[1641248473857,0.0077185,3749.8,3749.7,0.64567636]
[1641248475149,0.00931308,3749.8,3749.7,0.64567636]
[1641248475350,0.00931308,3749.8,3749.6,0.105359]
[1641248475548,0.00931308,3749.8,3749.7,0.64567636]
[1641248475848,0.00159458,3749.8,3749.7,0.64567636]
[1641248476852,0.00159458,3749.8,3747.6,0.104]
[1641248476853,0.67011591,3748.4,3748.2,1.33369]
[1641248477050,0.67011591,3748.4,3747.9,2.00380143]
[1641248477051,0.67011591,3748.4,3747.9,0.00360453]
[1641248477452,0.67011591,3748.4,3748.0,0.00251312]
[1641248477905,1.12643834,3748.4,3748.0,0.00251312]
[1641248478500,0.3865,3748.5,3748.0,0.00251312]
[1641248478707,0.82283818,3749.0,3748.0,0.00251312]
[1641248478708,0.32283818,3749.0,3748.0,0.00251312]
[1641248479102,0.00260269,3748.9,3748.0,0.00251312]
[1641248479500,0.00203427,3748.8,3748.1,1.31830836]
[1641248479900,0.00146584,3748.7,3748.2,0.00137627]
[1641248480307,0.32283818,3749.0,3748.2,0.00137627]
[1641248480308,0.00089742,3748.6,3748.2,0.00137627]
[1641248480704,0.00260269,3748.9,3748.2,0.00137627]
[1641248481102,0.00203427,3748.8,3748.2,0.00137627]
[1641248481551,0.00146584,3748.7,3748.2,0.00137627]
[1641248481951,0.00089742,3748.6,3748.2,0.00137627]
[1641248482354,0.00260269,3748.9,3748.2,0.00137627]
[1641248482856,0.00203427,3748.8,3748.2,0.00137627]
[1641248483255,0.32283818,3749.0,3748.2,0.00137627]
[1641248483256,0.00146584,3748.7,3748.2,0.00137627]
[1641248483659,0.00089742,3748.6,3748.2,0.00137627]
[1641248484058,0.00260269,3748.9,3748.2,0.00137627]
[1641248484457,0.00203427,3748.8,3748.2,0.00137627]
[1641248484860,0.00146584,3748.7,3748.2,0.00137627]
[1641248485293,0.00089742,3748.6,3748.2,0.00137627]
[1641248485690,0.00260269,3748.9,3748.2,0.00137627]
[1641248485891,0.00144037,3748.7,3748.2,0.00137627]
[1641248486297,0.00089742,3748.6,3748.2,0.00137627]
[1641248487096,0.66800742,3748.6,3748.2,0.00137627]
[1641248487494,0.00089742,3748.6,3748.2,0.00137627]
[1641248488095,0.00089742,3748.6,3748.0,3.427e-05]
[1641248488300,0.66714,3748.5,3747.8,0.105359]
[1641248488496,0.96884527,3748.5,3747.8,0.105359]
[1641248488696,0.00113684,3748.4,3748.3,1.75337312]
[1641248488949,0.00113684,3748.4,3748.3,0.02087312]
[1641248489549,0.00113684,3748.4,3747.9,0.10706427]
[1641248489750,1.14918981,3748.0,3746.9,1.97826385]
[1641248489950,1.14918981,3748.0,3746.6,1.22192527]
[1641248490151,1.14918981,3748.0,3747.0,0.00511581]
[1641248490352,1.76294321,3749.1,3749.0,24.42796552]
[1641248490856,2.36294321,3749.1,3749.0,24.42796552]
[1641248491058,3.03013321,3749.1,3749.0,24.53332452]
[1641248491661,3.03013321,3749.1,3749.0,17.06326198]
[1641248491859,3.03013321,3749.1,3749.0,16.29659558]
[1641248492259,3.03013321,3749.1,3749.0,10.95845558]
[1641248492460,3.03013321,3749.1,3749.0,1.51902416]
[1641248492709,3.03013321,3749.1,3746.9,0.11331593]
[1641248492710,18.8230909,3749.1,3746.9,0.11331593]
[1641248493011,2.3021845,3748.0,3747.0,0.0073895]
[1641248493208,1.26741,3748.0,3747.0,0.0073895]
[1641248493408,1.26741,3748.0,3745.4,4.94408353]
[1641248493608,0.00511581,3747.9,3745.4,4.94408353]
[1641248493808,1.09648093,3746.9,3745.5,1.13446602]
[1641248494214,1.09648093,3746.9,3745.6,0.00795793]
[1641248494409,0.66753,3746.5,3745.6,0.00795793]
[1641248494611,0.66753,3746.5,3745.3,0.0096632]
[1641248494810,0.66753,3746.5,3745.2,0.01023163]
[1641248495209,1.29320471,3746.0,3745.2,0.01023163]
[1641248495410,1.29320471,3746.0,3745.1,0.01080005]
[1641248495809,0.66756,3746.2,3745.1,0.01080005]
[1641248496550,3.8387,3746.7,3745.1,0.01080005]
[1641248496950,1.04082771,3746.1,3745.1,0.01080005]
[1641248497150,1.04176971,3746.1,3745.1,0.11615905]
[1641248497450,1.04176971,3746.1,3745.2,0.01023163]
[1641248498455,1.64176971,3746.1,3745.2,0.01023163]
[1641248499060,1.64176971,3746.1,3745.2,1.71421707]
[1641248499258,1.20300634,3745.4,3745.2,1.71421707]
[1641248499455,1.20300634,3745.4,3745.1,0.105359]
[1641248499456,1.20300634,3745.4,3745.3,0.0096632]
[1641248499656,1.33537,3746.0,3745.3,0.0096632]
[1641248499856,1.33537,3746.0,3745.2,0.01023163]
[1641248500718,1.9373345,3745.7,3745.2,0.01023163]
[1641248503728,0.668532,3746.1,3745.2,0.01023163]
[1641248507623,0.668532,3746.1,3745.1,0.01080005]
[1641248508710,0.000942,3746.1,3745.1,2.24259034]
[1641248508911,0.000942,3746.1,3745.1,18.13785433]
[1641248509111,0.000942,3746.1,3745.2,0.01023163]
[1641248509609,0.000942,3746.1,3745.3,15.78]
[1641248509813,0.000942,3746.1,3745.5,15.78]
[1641248510012,0.000942,3746.1,3745.7,15.79270982]
[1641248510211,0.000942,3746.1,3745.8,2.46326468]
[1641248510412,0.000942,3746.1,3745.8,6.16728577]
[1641248510613,7.8634,3748.6,3746.0,15.7927221]
[1641248510814,7.8634,3748.6,3746.3,0.66714]
[1641248511013,7.8634,3748.6,3746.7,15.78]
[1641248511014,0.00397896,3747.7,3746.7,15.78]
[1641248511214,0.00397896,3747.7,3747.5,1.40933488]
[1641248511460,0.00341054,3747.6,3747.5,1.40933488]
[1641248512057,0.00341054,3747.6,3747.5,17.18933488]
[1641248512759,0.00341054,3747.6,3747.5,1.40933488]
[1641248513461,0.00341054,3747.6,3747.4,0.13819997]
[1641248513860,0.00284211,3747.5,3747.4,0.13819997]
[1641248514360,0.00284211,3747.5,3747.4,1.84218541]
[1641248514965,0.00284211,3747.5,3747.4,0.13819997]
[1641248515603,0.00284211,3747.5,3747.4,50.13819997]
[1641248518211,0.00389921,3747.5,3747.4,50.13819997]
[1641248521756,0.66717,3748.3,3747.8,49.99610079]
[1641248522158,0.00397897,3748.2,3747.8,49.99610079]
[1641248522359,0.00397897,3748.2,3748.1,0.01296256]
[1641248522609,1.33415,3749.2,3747.8,49.99610079]
[1641248522818,0.66708,3748.9,3747.8,49.99610079]
[1641248523014,0.00341054,3748.1,3747.8,49.99610079]
[1641248523513,0.00284212,3748.0,3747.8,49.99610079]
[1641248523914,0.0022737,3747.9,3747.8,49.99610079]
[1641248524313,0.00454739,3747.9,3747.8,49.99610079]
[1641248528657,0.0055345,3747.9,3747.8,49.99610079]
[1641248541368,0.6727445,3747.9,3747.8,49.99610079]
[1641248542358,0.66726,3748.7,3748.6,48.65610289]
[1641248542762,0.66726,3748.7,3748.6,44.65965666]
[1641248543762,1.33449,3748.7,3748.6,44.65965666]
[1641248546414,1.63449,3748.7,3748.6,44.65965666]
[1641248547218,0.96723,3748.7,3748.6,44.65965666]
[1641248548015,0.96723,3748.7,3748.6,39.32146666]
[1641248549057,0.96723,3748.7,3748.6,33.98319666]
[1641248549258,1.26723,3748.7,3748.6,33.98319666]
[1641248549457,1.26723,3748.7,3748.6,28.64470666]
[1641248549858,17.04723,3748.7,3748.6,28.64470666]
[1641248550063,18.04723,3748.7,3748.6,22.5375274]
[1641248550457,18.04723,3748.7,3748.6,17.1985074]
[1641248551060,18.04723,3748.7,3748.6,11.8594874]
[1641248551666,18.04723,3748.7,3748.6,6.5204674]
[1641248552266,2.26723,3748.7,3748.6,1.1814474]
[1641248552716,1.96723,3748.7,3748.6,1.1814474]
[1641248552915,0.66732,3748.5,3748.2,0.06460936]
[1641248553113,1.6346241,3748.5,3748.2,0.06460936]
[1641248553319,0.6673041,3748.5,3748.2,0.06460936]
[1641248553916,1.05249991,3748.4,3748.2,0.06460936]
[1641248554619,2.31977991,3748.4,3748.2,0.06460936]
[1641248554916,2.01977991,3748.4,3748.2,0.06460936]
[1641248555117,3.01977991,3748.4,3748.2,0.06460936]
[1641248555316,0.6673491,3748.2,3747.8,0.00284212]
[1641248555515,1.63468,3748.1,3747.8,0.00284212]
[1641248555719,1.63468,3748.1,3747.5,0.06461024]
[1641248555918,0.66736,3747.8,3747.6,0.00397896]
[1641248556120,0.96736,3747.8,3747.6,0.00397896]
[1641248556354,0.66736,3747.8,3747.6,0.00397896]
[1641248557759,0.66736,3747.8,3746.8,0.00852635]
[1641248558157,0.66721,3748.0,3746.8,0.00852635]
[1641248558559,3.9162,3748.2,3746.8,0.00852635]
[1641248559560,4.58338,3748.2,3746.9,1.70398544]
[1641248559960,0.66718,3748.2,3747.0,0.0073895]
[1641248561010,0.66718,3748.2,3746.8,0.67571635]
[1641248561211,0.66718,3748.2,3746.9,2.40775071]
[1641248561411,0.66718,3748.2,3746.9,0.00795793]
[1641248561612,0.66718,3748.2,3747.0,0.0073895]
[1641248561815,0.66718,3748.2,3746.9,2.40464943]
[1641248562010,0.66718,3748.2,3747.0,0.0073895]
[1641248562511,0.66718,3748.2,3746.9,0.00795793]
[1641248566270,1.2336832,3748.4,3747.7,0.01268698]
[1641248566271,0.66715,3748.4,3747.7,0.01268698]
[1641248566469,0.00170527,3748.6,3747.7,0.01268698]
[1641248566868,0.00113685,3748.5,3747.7,0.01268698]
[1641248567268,1.12998853,3749.4,3748.0,1.02862222]
[1641248567718,0.66707,3748.8,3748.1,0.00113685]
[1641248568119,0.00227369,3748.7,3748.1,0.00113685]
[1641248568722,0.00227369,3748.7,3747.9,0.00227369]
[1641248570120,0.00320442,3748.7,3747.9,0.00227369]
[1641248570723,0.6671,3748.6,3747.9,0.00227369]
[1641248571124,0.00113685,3748.5,3747.9,0.00227369]
[1641248571764,0.66714,3748.4,3747.9,0.00227369]
[1641248571962,0.66714,3748.4,3747.6,1.70398544]
[1641248571963,0.66714,3748.4,3747.7,0.00341054]
[1641248573166,0.66714,3748.4,3747.6,2.38697261]
[1641248573368,0.00113685,3748.5,3747.6,0.00397896]
[1641248573568,0.00113685,3748.5,3747.5,1.70398544]
[1641248573569,0.00113685,3748.5,3747.7,0.00341054]
[1641248573771,1.29131586,3749.4,3749.0,46.8768017]
[1641248574069,0.66716,3749.3,3749.0,46.8768017]
[1641248574470,2.59131586,3749.4,3749.0,46.8768017]
[1641248574873,0.00454739,3749.3,3749.0,46.8768017]
[1641248575317,0.00397896,3749.2,3749.0,46.8768017]
[1641248575817,0.00341054,3749.1,3749.0,46.8768017]
[1641248580768,0.30432098,3749.1,3749.0,46.8768017]
[1641248581171,0.60432098,3749.1,3749.0,46.8768017]
[1641248581368,0.60432098,3749.1,3749.0,41.5388017]
[1641248581867,16.38432098,3749.1,3749.0,41.5388017]
[1641248582070,17.38432098,3749.1,3749.0,35.29301971]
[1641248582270,1.60432098,3749.1,3749.0,33.73775274]
[1641248582718,0.60432098,3749.1,3749.0,33.73775274]
[1641248584318,0.60432098,3749.1,3749.0,28.39965274]
[1641248585918,0.50432098,3749.1,3749.0,28.39965274]
[1641248586369,0.20432098,3749.1,3749.0,28.39965274]
[1641248587877,15.98432098,3749.1,3749.0,27.51216359]
[1641248588074,16.98432098,3749.1,3749.0,27.51216359]
[1641248588275,16.98432098,3749.1,3749.0,22.17406359]
[1641248588781,1.20432098,3749.1,3749.0,16.83515359]
[1641248589180,0.20432098,3749.1,3749.0,16.83515359]
[1641248592020,0.00432098,3749.1,3749.0,16.83515359]
[1641248600730,0.67151678,3749.1,3749.0,16.83515359]
[1641248600925,1.97151678,3749.1,3749.0,16.83515359]
[1641248601125,1.97151678,3749.1,3749.0,16.78515359]
[1641248601575,1.67151678,3749.1,3749.0,16.78515359]
[1641248601976,0.67151678,3749.1,3749.0,16.78515359]
[1641248602176,1.67151678,3749.1,3749.0,16.78515359]
[1641248602376,1.77313511,3749.1,3749.0,16.78515359]
[1641248602576,2.77313511,3749.1,3749.0,16.73515359]
[1641248602779,1.77313511,3749.1,3749.0,16.73515359]
[1641248602979,2.77313511,3749.1,3749.0,16.73515359]
[1641248603977,1.77313511,3749.1,3749.0,16.73515359]
[1641248604176,2.77313511,3749.1,3749.0,16.73515359]
[1641248604377,1.77313511,3749.1,3749.0,16.73515359]
[1641248604581,2.77313511,3749.1,3749.0,16.73515359]
[1641248604777,1.77313511,3749.1,3749.0,16.73515359]
[1641248604977,2.77313511,3749.1,3749.0,16.73515359]
[1641248605611,1.76972457,3749.1,3749.0,16.73515359]
[1641248607020,1.66972457,3749.1,3749.0,16.73515359]
[1641248607220,0.56810624,3749.1,3749.0,16.73515359]
[1641248608223,0.00091044,3749.1,3749.0,16.73515359]
[1641248618676,0.66810594,3749.1,3749.0,16.73515359]
[1641248621023,0.00091044,3749.1,3749.0,16.73515359]
[1641248621220,0.30091044,3749.1,3749.0,16.73515359]
[1641248621826,0.60091044,3749.1,3749.0,16.73515359]
[1641248623126,0.30091044,3749.1,3749.0,16.73515359]
[1641248623327,0.00091044,3749.1,3749.0,16.73515359]
[1641248623528,0.30091044,3749.1,3749.0,16.73515359]
[1641248623730,0.00091044,3749.1,3749.0,16.73515359]
[1641248635625,0.66805944,3749.1,3749.0,16.73515359]
[1641248638431,0.96805944,3749.1,3749.0,16.73515359]
[1641248638631,1.96805944,3749.1,3749.0,16.73515359]
[1641248638866,2.26805944,3749.1,3749.0,16.73515359]
[1641248639171,1.26805944,3749.1,3749.0,16.73515359]
[1641248639366,2.26805944,3749.1,3749.0,16.73515359]
[1641248639967,1.26805944,3749.1,3749.0,16.73515359]
[1641248640171,2.26805944,3749.1,3749.0,16.73515359]
[1641248640468,1.26805944,3749.1,3749.0,16.73515359]
[1641248640768,2.26805944,3749.1,3749.0,16.73515359]
[1641248640967,0.66805944,3749.1,3749.0,16.73515359]
[1641248641268,1.66805944,3749.1,3749.0,16.73515359]
[1641248641469,0.66805944,3749.1,3749.0,16.73515359]
[1641248641673,1.66805944,3749.1,3749.0,16.73515359]
[1641248641876,0.66805944,3749.1,3749.0,16.73515359]
[1641248642072,1.66805944,3749.1,3749.0,16.73515359]
[1641248642273,0.66805944,3749.1,3749.0,16.73515359]
[1641248642475,0.00091044,3749.1,3749.0,16.7471838]
[1641248643327,0.00091044,3749.1,3749.0,17.75701667]
[1641248643729,0.2198,3750.0,3749.0,18.42389237]
[1641248643926,0.2198,3750.0,3749.1,2.61141352]
[1641248644128,0.00682108,3749.7,3749.1,2.61141352]
[1641248644329,4.4926638,3750.6,3749.2,0.13819997]
[1641248644531,4.4926638,3750.6,3750.0,1.26352179]
[1641248644730,4.4926638,3750.6,3749.5,24.65057171]
[1641248645333,3.0105999,3751.0,3749.3,1.1886]
[1641248645630,3.0105999,3751.0,3749.4,0.00170527]
[1641248645631,0.00511581,3750.6,3749.4,0.00170527]
[1641248645831,0.00511581,3750.6,3749.4,2.45168932]
[1641248645832,0.67191581,3750.6,3749.4,2.45168932]
[1641248646030,0.00454739,3750.5,3749.4,0.00170527]
[1641248646231,0.00454739,3750.5,3749.8,1.32781359]
[1641248646472,0.00397896,3750.4,3749.4,0.00170527]
[1641248646874,0.0263067,3750.7,3749.4,0.00170527]
[1641248646875,0.00341054,3750.3,3749.4,0.00170527]
[1641248647275,0.00284212,3750.2,3749.4,2.42910245]
[1641248647475,0.00284212,3750.2,3749.4,1.31041902]
[1641248647682,0.00227369,3750.1,3749.5,0.00113685]
[1641248648081,0.00170527,3750.0,3749.5,0.00113685]
[1641248648382,0.00113685,3749.9,3749.5,0.00113685]
[1641248648581,8.55282422,3751.6,3749.5,0.00113685]
[1641248648789,8.55282422,3751.6,3749.4,1.27188587]
[1641248648790,1.0,3750.8,3749.4,1.27188587]
[1641248648981,1.67018848,3751.4,3749.7,0.01266952]
[1641248649183,2.33702848,3751.4,3749.7,0.01266952]
[1641248649385,0.00341054,3750.7,3750.0,1.0641592]
[1641248649786,0.66684,3750.4,3750.0,1.0641592]
[1641248649988,0.66684,3750.4,3749.7,0.01266952]
[1641248650228,0.00113685,3750.3,3749.7,0.01266952]
[1641248650726,0.66687,3750.2,3749.7,0.01266952]
[1641248651724,0.66687,3750.2,3749.5,0.00113685]
[1641248652125,0.66687,3750.2,3749.4,0.00397896]
[1641248652735,0.00113685,3750.3,3750.2,13.55854]
[1641248653233,0.66800685,3750.3,3750.2,11.098716]
[1641248653431,0.66895838,3750.3,3750.2,11.098716]
[1641248654075,0.00208838,3750.3,3750.2,11.098716]
[1641248655475,0.00208838,3750.3,3750.2,12.18669808]
[1641248655679,0.00208838,3750.3,3750.2,11.098716]
[1641248656281,0.00208838,3750.3,3750.2,10.93028654]
[1641248656680,0.00208838,3750.3,3750.2,12.11044015]
[1641248659627,0.00208838,3750.3,3750.2,12.06044015]
[1641248663287,0.5,3752.1,3750.2,12.06044015]
[1641248663486,1.8,3752.1,3750.3,1.1661]
[1641248663692,0.00170527,3750.6,3750.3,1.1661]
[1641248663986,0.01554,3752.0,3750.3,1.1661]
[1641248663987,0.00113685,3750.5,3750.3,1.1661]
[1641248664187,0.00113685,3750.5,3750.3,4.4162]